[Event "Early-Titled-Tuesday-Blitz-September-05-2023"]
[Site "Chess.com"]
[Date "2023.09.05"]
[Round "11"]
[White "LileKoridze"]
[Black "viktorgen2021"]
[Result "0-1"]
[WhiteElo "2389"]
[BlackElo "2497"]
[TimeControl "180+1"]
[EndTime "10:02:47 PDT"]
[Termination "viktorgen2021 won by resignation"]

1. d4 {[%clk 0:03:00.9]} 1... Nf6 {[%clk 0:02:58.9]} 2. c4 {[%clk 0:03:00.5]}
2... g6 {[%clk 0:02:59.3]} 3. Nc3 {[%clk 0:02:56.8]} 3... Bg7 {[%clk 0:02:59]}
4. e4 {[%clk 0:02:57.1]} 4... O-O {[%clk 0:02:59.6]} 5. Nf3 {[%clk 0:02:57.5]}
5... d6 {[%clk 0:03:00.2]} 6. Be2 {[%clk 0:02:58]} 6... e5 {[%clk 0:02:59.9]} 7.
O-O {[%clk 0:02:57.7]} 7... Na6 {[%clk 0:03:00.4]} 8. Be3 {[%clk 0:02:56.7]}
8... Qe8 {[%clk 0:03:00.5]} 9. dxe5 {[%clk 0:02:56.5]} 9... dxe5 {[%clk
0:03:00.7]} 10. c5 {[%clk 0:02:49.9]} 10... Ng4 {[%clk 0:02:54.1]} 11. Qc1
{[%clk 0:02:48.8]} 11... Nxe3 {[%clk 0:02:49.1]} 12. Qxe3 {[%clk 0:02:49.1]}
12... Nb4 {[%clk 0:02:48.9]} 13. Rac1 {[%clk 0:02:47.8]} 13... a6 {[%clk
0:02:46.6]} 14. a3 {[%clk 0:02:47.3]} 14... Nc6 {[%clk 0:02:46.9]} 15. Nd5
{[%clk 0:02:47.7]} 15... Qd8 {[%clk 0:02:44.7]} 16. Rfd1 {[%clk 0:02:46.7]}
16... Nd4 {[%clk 0:02:44.7]} 17. Bc4 {[%clk 0:02:42.7]} 17... c6 {[%clk
0:02:40.5]} 18. Nb6 {[%clk 0:02:41.4]} 18... Rb8 {[%clk 0:02:34.8]} 19. Ng5
{[%clk 0:02:35.5]} 19... Qe7 {[%clk 0:02:23.2]} 20. f4 {[%clk 0:02:31.9]} 20...
exf4 {[%clk 0:01:48]} 21. Qxf4 {[%clk 0:02:30.2]} 21... Be6 {[%clk 0:01:47.7]}
22. Nxe6 {[%clk 0:02:20.7]} 22... fxe6 {[%clk 0:01:45.1]} 23. Qe3 {[%clk
0:02:21]} 23... Rbd8 {[%clk 0:01:41]} 24. b4 {[%clk 0:02:17]} 24... Be5 {[%clk
0:01:28.1]} 25. Rf1 {[%clk 0:02:16.4]} 25... Nf3+ {[%clk 0:01:13.7]} 26. Kh1
{[%clk 0:02:12.5]} 26... Nxh2 {[%clk 0:00:53.6]} 27. Qh3 {[%clk 0:02:05.8]}
27... Nxf1 {[%clk 0:00:48.9]} 28. Rxf1 {[%clk 0:02:02.8]} 28... Rxf1+ {[%clk
0:00:47.9]} 29. Bxf1 {[%clk 0:02:02]} 29... Rd1 {[%clk 0:00:45.7]} 30. Kg1
{[%clk 0:02:02.2]} 30... Bd4+ {[%clk 0:00:44.7]} 0-1

[Event "Early-Titled-Tuesday-Blitz-September-05-2023"]
[Site "Chess.com"]
[Date "2023.09.05"]
[Round "11"]
[White "nrvignesh"]
[Black "Druid24"]
[Result "1-0"]
[WhiteElo "2850"]
[BlackElo "2679"]
[TimeControl "180+1"]
[EndTime "10:02:51 PDT"]
[Termination "nrvignesh won by resignation"]

1. Nf3 {[%clk 0:03:00.9]} 1... d5 {[%clk 0:02:57.8]} 2. g3 {[%clk 0:03:01]} 2...
Nd7 {[%clk 0:02:57.2]} 3. d4 {[%clk 0:03:00.3]} 3... Nb6 {[%clk 0:02:55.2]} 4.
a4 {[%clk 0:02:59.6]} 4... Bf5 {[%clk 0:02:54.3]} 5. Nc3 {[%clk 0:02:56.6]} 5...
e6 {[%clk 0:02:54]} 6. Nh4 {[%clk 0:02:56.6]} 6... Bg6 {[%clk 0:02:53.6]} 7. Bg2
{[%clk 0:02:46.4]} 7... Be7 {[%clk 0:02:49]} 8. Nxg6 {[%clk 0:02:45.9]} 8...
hxg6 {[%clk 0:02:49.9]} 9. a5 {[%clk 0:02:43]} 9... Nd7 {[%clk 0:02:47.2]} 10.
a6 {[%clk 0:02:41.7]} 10... b6 {[%clk 0:02:47.2]} 11. e4 {[%clk 0:02:40.4]}
11... c6 {[%clk 0:02:46.2]} 12. O-O {[%clk 0:02:40.1]} 12... Rc8 {[%clk
0:02:39.1]} 13. exd5 {[%clk 0:02:39.4]} 13... cxd5 {[%clk 0:02:39.1]} 14. Nb5
{[%clk 0:02:37.6]} 14... Ra8 {[%clk 0:02:28.8]} 15. Bf4 {[%clk 0:02:36.6]} 15...
Kf8 {[%clk 0:02:24.1]} 16. c4 {[%clk 0:02:35]} 16... Ngf6 {[%clk 0:02:24.1]} 17.
Rc1 {[%clk 0:02:27.8]} 17... Rh5 {[%clk 0:02:15.2]} 18. Re1 {[%clk 0:02:25.8]}
18... dxc4 {[%clk 0:02:10.2]} 19. Bxa8 {[%clk 0:02:17.2]} 19... Rxb5 {[%clk
0:02:10.6]} 20. Bc6 {[%clk 0:02:13.9]} 20... Rxb2 {[%clk 0:02:08.3]} 21. Rxc4
{[%clk 0:02:13.5]} 21... b5 {[%clk 0:01:52.6]} 22. Rc2 {[%clk 0:02:07.3]} 22...
Rxc2 {[%clk 0:01:48.9]} 23. Qxc2 {[%clk 0:02:08.2]} 23... b4 {[%clk 0:01:46.6]}
24. Rc1 {[%clk 0:02:00]} 24... Nb6 {[%clk 0:01:46.4]} 25. Bb7 {[%clk 0:01:51.2]}
25... Qxd4 {[%clk 0:01:36.2]} 26. Be3 {[%clk 0:01:51.4]} 26... Qd6 {[%clk
0:01:35.1]} 27. Qc7 {[%clk 0:01:43.3]} 27... Qxc7 {[%clk 0:01:14.1]} 28. Rxc7
{[%clk 0:01:44.2]} 28... b3 {[%clk 0:01:14.4]} 29. Bxb6 {[%clk 0:01:32.9]} 29...
b2 {[%clk 0:01:13.8]} 30. Rc8+ {[%clk 0:01:33]} 1-0

[Event "Early-Titled-Tuesday-Blitz-September-05-2023"]
[Site "Chess.com"]
[Date "2023.09.05"]
[Round "11"]
[White "kasun_bole"]
[Black "JaloliddinIlkhomi"]
[Result "0-1"]
[WhiteElo "2412"]
[BlackElo "2575"]
[TimeControl "180+1"]
[EndTime "10:02:55 PDT"]
[Termination "JaloliddinIlkhomi won by resignation"]

1. d4 {[%clk 0:03:00.9]} 1... Nf6 {[%clk 0:03:00.4]} 2. c4 {[%clk 0:03:01.2]}
2... e6 {[%clk 0:03:00.6]} 3. Nf3 {[%clk 0:03:00.9]} 3... b6 {[%clk 0:03:01]} 4.
Bg5 {[%clk 0:02:55.8]} 4... Bb7 {[%clk 0:02:59.5]} 5. Qc2 {[%clk 0:02:54.6]}
5... Be7 {[%clk 0:02:59.9]} 6. Nbd2 {[%clk 0:02:54.4]} 6... h6 {[%clk
0:03:00.1]} 7. Bh4 {[%clk 0:02:49.5]} 7... d5 {[%clk 0:03:00.7]} 8. e3 {[%clk
0:02:46.8]} 8... Nbd7 {[%clk 0:03:00.9]} 9. Bd3 {[%clk 0:02:45.6]} 9... c5
{[%clk 0:03:01.3]} 10. O-O {[%clk 0:02:44.8]} 10... O-O {[%clk 0:02:59.1]} 11.
Rac1 {[%clk 0:02:44.7]} 11... Rc8 {[%clk 0:02:55.8]} 12. Qa4 {[%clk 0:02:44.5]}
12... a5 {[%clk 0:02:53.1]} 13. Bg3 {[%clk 0:02:37.3]} 13... Ne4 {[%clk
0:02:51.2]} 14. Rfd1 {[%clk 0:02:36.7]} 14... Nxg3 {[%clk 0:02:49.9]} 15. hxg3
{[%clk 0:02:36.7]} 15... cxd4 {[%clk 0:02:49.7]} 16. Nxd4 {[%clk 0:02:36.1]}
16... Nc5 {[%clk 0:02:49.6]} 17. Qc2 {[%clk 0:02:34.2]} 17... dxc4 {[%clk
0:02:45.8]} 18. Bxc4 {[%clk 0:02:28.2]} 18... Qc7 {[%clk 0:02:44.1]} 19. Be2
{[%clk 0:02:24.6]} 19... Rfd8 {[%clk 0:02:42.2]} 20. Bf3 {[%clk 0:02:23.7]}
20... Bxf3 {[%clk 0:02:41]} 21. N2xf3 {[%clk 0:02:24.6]} 21... Bf6 {[%clk
0:02:40.9]} 22. Nb5 {[%clk 0:02:23.1]} 22... Qe7 {[%clk 0:02:40.5]} 23. Rxd8+
{[%clk 0:02:21.9]} 23... Rxd8 {[%clk 0:02:40.4]} 24. Rd1 {[%clk 0:02:21.4]}
24... Rxd1+ {[%clk 0:02:37.3]} 25. Qxd1 {[%clk 0:02:21.5]} 25... Bxb2 {[%clk
0:02:38.2]} 26. Nfd4 {[%clk 0:02:14.8]} 26... Bxd4 {[%clk 0:02:37.3]} 27. Qxd4
{[%clk 0:02:14.6]} 27... Qd7 {[%clk 0:02:36.6]} 28. Nd6 {[%clk 0:02:03.2]} 28...
Kf8 {[%clk 0:02:24.3]} 29. e4 {[%clk 0:01:49.2]} 29... Nxe4 {[%clk 0:02:16.8]}
30. Qxe4 {[%clk 0:01:47]} 30... Qxd6 {[%clk 0:02:17.4]} 31. Qa8+ {[%clk
0:01:47.7]} 31... Ke7 {[%clk 0:02:18]} 32. Qb7+ {[%clk 0:01:48]} 32... Kf6
{[%clk 0:02:18.5]} 33. Qf3+ {[%clk 0:01:47.3]} 33... Kg6 {[%clk 0:02:19.2]} 34.
Qe4+ {[%clk 0:01:47.5]} 34... f5 {[%clk 0:02:19.8]} 35. Qc4 {[%clk 0:01:44]}
35... Qd5 {[%clk 0:02:18.8]} 36. Qc7 {[%clk 0:01:40.8]} 36... Qxa2 {[%clk
0:02:15.4]} 37. Qxb6 {[%clk 0:01:41.1]} 37... a4 {[%clk 0:02:16]} 38. Kh2 {[%clk
0:01:34.8]} 38... a3 {[%clk 0:02:16.5]} 39. Qa6 {[%clk 0:01:33.7]} 39... Qb3
{[%clk 0:02:14.8]} 40. f3 {[%clk 0:01:29.3]} 40... a2 {[%clk 0:02:14.6]} 41. Kh3
{[%clk 0:01:26.4]} 41... Kh7 {[%clk 0:02:15]} 42. g4 {[%clk 0:01:20.2]} 42...
Qb1 {[%clk 0:02:07.3]} 43. Qxe6 {[%clk 0:01:15.1]} 43... a1=Q {[%clk 0:02:07.5]}
44. gxf5 {[%clk 0:01:15.3]} 44... Qf6 {[%clk 0:02:07.6]} 0-1

[Event "Early-Titled-Tuesday-Blitz-September-05-2023"]
[Site "Chess.com"]
[Date "2023.09.05"]
[Round "11"]
[White "kikoveiga"]
[Black "vladgoncharov"]
[Result "0-1"]
[WhiteElo "2591"]
[BlackElo "2566"]
[TimeControl "180+1"]
[EndTime "10:03:05 PDT"]
[Termination "vladgoncharov won by resignation"]

1. c4 {[%clk 0:02:57.2]} 1... Nf6 {[%clk 0:02:59]} 2. Nc3 {[%clk 0:02:57.4]}
2... c5 {[%clk 0:02:59.5]} 3. g3 {[%clk 0:02:56.7]} 3... Nc6 {[%clk 0:02:59]} 4.
Bg2 {[%clk 0:02:57.6]} 4... g6 {[%clk 0:02:59.3]} 5. e4 {[%clk 0:02:57.9]} 5...
Bg7 {[%clk 0:02:57.8]} 6. Nge2 {[%clk 0:02:58.8]} 6... d6 {[%clk 0:02:54.6]} 7.
O-O {[%clk 0:02:58.9]} 7... O-O {[%clk 0:02:54]} 8. a3 {[%clk 0:02:59.3]} 8...
Ne8 {[%clk 0:02:51]} 9. Rb1 {[%clk 0:02:59.3]} 9... Rb8 {[%clk 0:02:45]} 10. b4
{[%clk 0:02:58.8]} 10... b6 {[%clk 0:02:43.8]} 11. d3 {[%clk 0:02:20.8]} 11...
Nc7 {[%clk 0:02:38.1]} 12. Be3 {[%clk 0:02:20.6]} 12... Nd4 {[%clk 0:02:38]} 13.
h3 {[%clk 0:02:17.4]} 13... Bb7 {[%clk 0:02:35.4]} 14. f4 {[%clk 0:02:13.8]}
14... e6 {[%clk 0:02:24]} 15. Qd2 {[%clk 0:02:11.9]} 15... f5 {[%clk 0:01:59.3]}
16. bxc5 {[%clk 0:01:59.9]} 16... dxc5 {[%clk 0:01:47.6]} 17. e5 {[%clk
0:02:00]} 17... Bxg2 {[%clk 0:01:47.1]} 18. Kxg2 {[%clk 0:02:00.9]} 18... Nc6
{[%clk 0:01:44.7]} 19. Rfd1 {[%clk 0:01:40.3]} 19... Qe7 {[%clk 0:01:38.6]} 20.
d4 {[%clk 0:01:40]} 20... cxd4 {[%clk 0:01:38.3]} 21. Nxd4 {[%clk 0:01:40.9]}
21... Nxd4 {[%clk 0:01:38.4]} 22. Qxd4 {[%clk 0:01:41.3]} 22... Rfd8 {[%clk
0:01:33.5]} 23. Qd6 {[%clk 0:01:33.7]} 23... Rxd6 {[%clk 0:01:31.8]} 24. exd6
{[%clk 0:01:34.6]} 24... Qd7 {[%clk 0:01:30.3]} 25. dxc7 {[%clk 0:01:35]} 25...
Qxc7 {[%clk 0:01:30.3]} 26. Nb5 {[%clk 0:01:33.3]} 26... Qxc4 {[%clk 0:01:26.7]}
27. Nxa7 {[%clk 0:01:30.7]} 27... Qa2+ {[%clk 0:01:16.8]} 28. Kg1 {[%clk
0:01:26.6]} 28... Qxa3 {[%clk 0:01:15]} 29. Bxb6 {[%clk 0:01:24.9]} 29... Rxb6
{[%clk 0:01:13.8]} 30. Rd8+ {[%clk 0:01:25.1]} 30... Bf8 {[%clk 0:01:12.3]} 31.
Rxb6 {[%clk 0:01:23.6]} 31... Qe3+ {[%clk 0:01:11.8]} 0-1

[Event "Early-Titled-Tuesday-Blitz-September-05-2023"]
[Site "Chess.com"]
[Date "2023.09.05"]
[Round "11"]
[White "gm_rashid"]
[Black "DrDreBeats"]
[Result "0-1"]
[WhiteElo "2405"]
[BlackElo "2561"]
[TimeControl "180+1"]
[EndTime "10:03:06 PDT"]
[Termination "DrDreBeats won by checkmate"]

1. e4 {[%clk 0:02:56.4]} 1... d5 {[%clk 0:02:59.4]} 2. exd5 {[%clk 0:02:56.3]}
2... Qxd5 {[%clk 0:03:00.3]} 3. Nc3 {[%clk 0:02:55.4]} 3... Qa5 {[%clk
0:03:00.4]} 4. d4 {[%clk 0:02:55.4]} 4... Nf6 {[%clk 0:03:00.9]} 5. Nf3 {[%clk
0:02:55.1]} 5... Nc6 {[%clk 0:03:01.1]} 6. Bf4 {[%clk 0:02:50.4]} 6... Bg4
{[%clk 0:03:00.3]} 7. Be2 {[%clk 0:02:45.3]} 7... O-O-O {[%clk 0:03:00.1]} 8.
Be3 {[%clk 0:02:17.9]} 8... e5 {[%clk 0:02:57]} 9. O-O {[%clk 0:02:07.9]} 9...
Bxf3 {[%clk 0:02:51.2]} 10. Bxf3 {[%clk 0:02:00.9]} 10... exd4 {[%clk
0:02:51.1]} 11. Bxc6 {[%clk 0:02:01.4]} 11... bxc6 {[%clk 0:02:51.7]} 12. Bxd4
{[%clk 0:01:36.9]} 12... c5 {[%clk 0:02:51]} 13. b4 {[%clk 0:01:33.6]} 13...
Qxb4 {[%clk 0:02:47]} 14. Rb1 {[%clk 0:01:23.5]} 14... Qxd4 {[%clk 0:02:35.7]}
15. Qe2 {[%clk 0:01:21.6]} 15... Qxc3 {[%clk 0:02:26]} 16. Qa6+ {[%clk
0:01:14.4]} 16... Kd7 {[%clk 0:02:25.2]} 17. Rbd1+ {[%clk 0:01:10.3]} 17... Bd6
{[%clk 0:02:24.8]} 18. Qb5+ {[%clk 0:01:07.3]} 18... Ke7 {[%clk 0:02:20.6]} 19.
Rfe1+ {[%clk 0:01:07.2]} 19... Kf8 {[%clk 0:02:17.1]} 20. Qa4 {[%clk 0:01:05.2]}
20... g6 {[%clk 0:02:07.7]} 21. Qh4 {[%clk 0:01:02.6]} 21... Kg7 {[%clk
0:02:07.3]} 22. g3 {[%clk 0:01:01.3]} 22... Rhe8 {[%clk 0:02:06.1]} 23. Rf1
{[%clk 0:01:00.8]} 23... Be5 {[%clk 0:02:03.7]} 24. Rb1 {[%clk 0:00:59.3]} 24...
Bd4 {[%clk 0:02:03.1]} 25. Rb7 {[%clk 0:00:58.7]} 25... Qf3 {[%clk 0:02:02.3]}
26. Rb3 {[%clk 0:00:53.1]} 26... Bxf2+ {[%clk 0:02:00.9]} 27. Rxf2 {[%clk
0:00:50.6]} 27... Re1+ {[%clk 0:02:01.8]} 28. Rf1 {[%clk 0:00:25.8]} 28... Qxf1#
{[%clk 0:02:02.7]} 0-1

[Event "Early-Titled-Tuesday-Blitz-September-05-2023"]
[Site "Chess.com"]
[Date "2023.09.05"]
[Round "11"]
[White "smilingice"]
[Black "mamey78"]
[Result "0-1"]
[WhiteElo "2428"]
[BlackElo "2589"]
[TimeControl "180+1"]
[EndTime "10:03:16 PDT"]
[Termination "mamey78 won by resignation"]

1. e4 {[%clk 0:02:55.3]} 1... e5 {[%clk 0:02:59.7]} 2. Nf3 {[%clk 0:02:54.2]}
2... Nc6 {[%clk 0:03:00]} 3. d4 {[%clk 0:02:53.5]} 3... exd4 {[%clk 0:03:00]} 4.
Bc4 {[%clk 0:02:52.4]} 4... Nf6 {[%clk 0:03:00.3]} 5. e5 {[%clk 0:02:51.9]} 5...
d5 {[%clk 0:03:00.1]} 6. Bb5 {[%clk 0:02:51.9]} 6... Ne4 {[%clk 0:03:00.6]} 7.
Nxd4 {[%clk 0:02:50.7]} 7... Bc5 {[%clk 0:03:01.1]} 8. Be3 {[%clk 0:02:36.3]}
8... O-O {[%clk 0:03:00.5]} 9. Nxc6 {[%clk 0:02:28.3]} 9... bxc6 {[%clk
0:02:59.6]} 10. Bxc5 {[%clk 0:02:28.2]} 10... Nxc5 {[%clk 0:02:59.2]} 11. Bxc6
{[%clk 0:02:28.2]} 11... Rb8 {[%clk 0:02:59.6]} 12. Bxd5 {[%clk 0:02:01]} 12...
Ba6 {[%clk 0:02:50.7]} 13. c4 {[%clk 0:01:57.5]} 13... c6 {[%clk 0:02:44.6]} 14.
Bxc6 {[%clk 0:01:43.5]} 14... Nd3+ {[%clk 0:02:42.4]} 15. Kf1 {[%clk 0:01:37.1]}
15... Bxc4 {[%clk 0:02:42.3]} 16. Kg1 {[%clk 0:01:36.6]} 16... Nxe5 {[%clk
0:02:11.9]} 17. Qxd8 {[%clk 0:01:27]} 17... Rfxd8 {[%clk 0:02:12.8]} 18. Bf3
{[%clk 0:01:25.2]} 18... Rxb2 {[%clk 0:02:03.9]} 19. Nc3 {[%clk 0:01:25.3]}
19... Rc2 {[%clk 0:01:55.4]} 20. Nd1 {[%clk 0:01:16.6]} 20... Rxa2 {[%clk
0:01:45.4]} 21. Rxa2 {[%clk 0:01:06.4]} 21... Bxa2 {[%clk 0:01:41.1]} 22. Ne3
{[%clk 0:01:04.7]} 22... Rb8 {[%clk 0:01:27.8]} 23. Be2 {[%clk 0:01:03.8]} 23...
Rb1+ {[%clk 0:01:26.9]} 24. Nf1 {[%clk 0:01:03.5]} 24... Bc4 {[%clk 0:01:24.9]}
25. f4 {[%clk 0:00:54.3]} 25... Bxe2 {[%clk 0:01:23.9]} 26. Kf2 {[%clk
0:00:54.3]} 26... Rxf1+ {[%clk 0:01:19.3]} 0-1

[Event "Early-Titled-Tuesday-Blitz-September-05-2023"]
[Site "Chess.com"]
[Date "2023.09.05"]
[Round "11"]
[White "Jumbo"]
[Black "wqws"]
[Result "1-0"]
[WhiteElo "2897"]
[BlackElo "2645"]
[TimeControl "180+1"]
[EndTime "10:03:23 PDT"]
[Termination "Jumbo won by resignation"]

1. e4 {[%clk 0:03:00.9]} 1... c5 {[%clk 0:02:59.7]} 2. Ne2 {[%clk 0:03:01.4]}
2... d6 {[%clk 0:02:59.6]} 3. Nbc3 {[%clk 0:03:01.2]} 3... Nf6 {[%clk 0:02:59]}
4. g3 {[%clk 0:03:01]} 4... Nc6 {[%clk 0:02:56.3]} 5. Bg2 {[%clk 0:03:00.7]}
5... h5 {[%clk 0:02:53.9]} 6. h3 {[%clk 0:03:00.2]} 6... h4 {[%clk 0:02:50.4]}
7. g4 {[%clk 0:02:58.2]} 7... e5 {[%clk 0:02:50.4]} 8. d3 {[%clk 0:02:55.2]}
8... Be7 {[%clk 0:02:48]} 9. f4 {[%clk 0:02:48.7]} 9... Nd4 {[%clk 0:02:19.7]}
10. Be3 {[%clk 0:02:38.1]} 10... Bxg4 {[%clk 0:02:07.4]} 11. hxg4 {[%clk
0:02:37.1]} 11... Nxg4 {[%clk 0:02:07.7]} 12. Bg1 {[%clk 0:02:37.7]} 12... h3
{[%clk 0:01:55.7]} 13. Rxh3 {[%clk 0:02:37.4]} 13... Rxh3 {[%clk 0:01:47.3]} 14.
Bxh3 {[%clk 0:02:38.3]} 14... Bh4+ {[%clk 0:00:51.5]} 15. Kf1 {[%clk 0:02:37.2]}
15... Qd7 {[%clk 0:00:35]} 16. Kg2 {[%clk 0:02:37.1]} 16... f5 {[%clk 0:00:32]}
17. Nxd4 {[%clk 0:02:28.4]} 17... cxd4 {[%clk 0:00:31.3]} 18. Nd5 {[%clk
0:02:28.7]} 18... O-O-O {[%clk 0:00:26.9]} 19. Bxg4 {[%clk 0:02:23.7]} 19...
fxg4 {[%clk 0:00:26.5]} 20. f5 {[%clk 0:02:24.3]} 20... g6 {[%clk 0:00:20.6]}
21. Qxg4 {[%clk 0:02:18.6]} 21... gxf5 {[%clk 0:00:18.8]} 22. Qxf5 {[%clk
0:02:14.3]} 22... Rg8+ {[%clk 0:00:18.2]} 23. Kh1 {[%clk 0:02:12.1]} 23... Bg5
{[%clk 0:00:12.4]} 24. Rf1 {[%clk 0:02:08.5]} 24... Kd8 {[%clk 0:00:11.8]} 25.
Qxd7+ {[%clk 0:02:07.8]} 25... Kxd7 {[%clk 0:00:12.7]} 26. Rf7+ {[%clk
0:02:06.5]} 26... Kc8 {[%clk 0:00:13]} 27. c3 {[%clk 0:02:02.4]} 27... dxc3
{[%clk 0:00:12.9]} 28. bxc3 {[%clk 0:02:03.3]} 28... Kb8 {[%clk 0:00:13]} 1-0

[Event "Early-Titled-Tuesday-Blitz-September-05-2023"]
[Site "Chess.com"]
[Date "2023.09.05"]
[Round "11"]
[White "Dewarfd"]
[Black "LeoWin2012"]
[Result "0-1"]
[WhiteElo "2117"]
[BlackElo "2209"]
[TimeControl "180+1"]
[EndTime "10:03:51 PDT"]
[Termination "LeoWin2012 won by resignation"]

1. d4 {[%clk 0:03:00]} 1... d5 {[%clk 0:02:58.8]} 2. e3 {[%clk 0:03:00.2]} 2...
Nf6 {[%clk 0:02:57.5]} 3. Nf3 {[%clk 0:03:00.3]} 3... Bf5 {[%clk 0:02:54.7]} 4.
Ne5 {[%clk 0:02:58.7]} 4... Nbd7 {[%clk 0:02:54]} 5. f3 {[%clk 0:02:56.5]} 5...
e6 {[%clk 0:02:50.7]} 6. g4 {[%clk 0:02:55.8]} 6... Bg6 {[%clk 0:02:50]} 7. h4
{[%clk 0:02:55.7]} 7... h6 {[%clk 0:02:40.5]} 8. Nxg6 {[%clk 0:02:54.9]} 8...
fxg6 {[%clk 0:02:40.4]} 9. Bd3 {[%clk 0:02:54.5]} 9... Kf7 {[%clk 0:02:36.8]}
10. h5 {[%clk 0:02:50.6]} 10... g5 {[%clk 0:02:34.9]} 11. Nc3 {[%clk 0:02:48.8]}
11... Bd6 {[%clk 0:02:34.6]} 12. f4 {[%clk 0:02:43]} 12... c5 {[%clk 0:02:14.7]}
13. dxc5 {[%clk 0:02:40.5]} 13... Nxc5 {[%clk 0:02:12.9]} 14. Bg6+ {[%clk
0:02:38.5]} 14... Ke7 {[%clk 0:01:57.6]} 15. Qf3 {[%clk 0:02:35]} 15... Qa5
{[%clk 0:01:43.6]} 16. Bd2 {[%clk 0:02:33.6]} 16... Qb6 {[%clk 0:01:42.3]} 17.
O-O-O {[%clk 0:02:27.6]} 17... a5 {[%clk 0:01:40.1]} 18. fxg5 {[%clk 0:02:21.7]}
18... hxg5 {[%clk 0:01:41]} 19. e4 {[%clk 0:02:03.2]} 19... dxe4 {[%clk
0:01:32.9]} 20. Qe3 {[%clk 0:02:02]} 20... Bf4 {[%clk 0:01:31.5]} 21. Qd4 {[%clk
0:02:00.2]} 21... Nd3+ {[%clk 0:01:27.9]} 22. cxd3 {[%clk 0:01:49]} 22... Qxd4
{[%clk 0:01:27.3]} 23. dxe4 {[%clk 0:01:48.9]} 23... Bxd2+ {[%clk 0:01:25.9]}
24. Rxd2 {[%clk 0:01:48.6]} 24... Qe5 {[%clk 0:01:24.1]} 25. Kb1 {[%clk
0:01:25.2]} 25... Rad8 {[%clk 0:01:21.6]} 26. Rc2 {[%clk 0:01:24.9]} 26... Nxg4
{[%clk 0:01:20.1]} 27. Rf1 {[%clk 0:01:15.2]} 27... Rhf8 {[%clk 0:01:17.5]} 28.
Rfc1 {[%clk 0:01:11.7]} 28... Nf6 {[%clk 0:01:10.3]} 29. a4 {[%clk 0:01:09.6]}
29... Rh8 {[%clk 0:01:08]} 30. Nb5 {[%clk 0:01:09]} 30... Nxh5 {[%clk
0:01:03.7]} 31. Rc7+ {[%clk 0:01:07.6]} 31... Rd7 {[%clk 0:01:03.9]} 32. Rxd7+
{[%clk 0:01:07.2]} 32... Kxd7 {[%clk 0:01:04.8]} 33. Rc7+ {[%clk 0:01:07]} 33...
Qxc7 {[%clk 0:01:04.3]} 34. Nxc7 {[%clk 0:01:06.5]} 34... Kxc7 {[%clk
0:01:05.2]} 35. Kc2 {[%clk 0:01:04.1]} 35... Nf4 {[%clk 0:01:06.1]} 36. Bf7
{[%clk 0:01:03.3]} 36... Rf8 {[%clk 0:01:05.4]} 37. e5 {[%clk 0:01:03.1]} 37...
Rxf7 {[%clk 0:01:05.1]} 38. Kc3 {[%clk 0:01:03.4]} 38... Rf5 {[%clk 0:01:06]}
39. Kd4 {[%clk 0:01:04.3]} 39... Kc6 {[%clk 0:01:06.1]} 0-1

[Event "Early-Titled-Tuesday-Blitz-September-05-2023"]
[Site "Chess.com"]
[Date "2023.09.05"]
[Round "11"]
[White "Speshka"]
[Black "The_Princess_Moon"]
[Result "1-0"]
[WhiteElo "2529"]
[BlackElo "2293"]
[TimeControl "180+1"]
[EndTime "10:03:54 PDT"]
[Termination "Speshka won by resignation"]

1. e4 {[%clk 0:03:00.9]} 1... c5 {[%clk 0:03:00.9]} 2. Nf3 {[%clk 0:03:00.6]}
2... a6 {[%clk 0:03:01.3]} 3. c3 {[%clk 0:02:59.5]} 3... d5 {[%clk 0:03:01.2]}
4. exd5 {[%clk 0:03:00.4]} 4... Qxd5 {[%clk 0:03:02]} 5. d4 {[%clk 0:03:01]}
5... Bg4 {[%clk 0:03:02.2]} 6. Be2 {[%clk 0:02:59.7]} 6... Nf6 {[%clk
0:03:02.4]} 7. h3 {[%clk 0:02:59]} 7... Bh5 {[%clk 0:03:02.3]} 8. O-O {[%clk
0:02:57.8]} 8... e6 {[%clk 0:03:02.6]} 9. c4 {[%clk 0:02:55.1]} 9... Qd6 {[%clk
0:03:02.5]} 10. Nc3 {[%clk 0:02:54.2]} 10... cxd4 {[%clk 0:03:02.4]} 11. Nxd4
{[%clk 0:02:53.4]} 11... Bxe2 {[%clk 0:03:01.6]} 12. Ndxe2 {[%clk 0:02:52.7]}
12... Nbd7 {[%clk 0:02:59.9]} 13. Bf4 {[%clk 0:02:50.1]} 13... Qc5 {[%clk
0:02:54.7]} 14. b3 {[%clk 0:02:47.8]} 14... Be7 {[%clk 0:02:52.9]} 15. Qc2
{[%clk 0:02:45.3]} 15... O-O {[%clk 0:02:50.6]} 16. Rad1 {[%clk 0:02:44.2]}
16... Rac8 {[%clk 0:02:49.4]} 17. Ng3 {[%clk 0:02:39]} 17... b5 {[%clk
0:02:40.7]} 18. Nce4 {[%clk 0:02:37.2]} 18... Qc6 {[%clk 0:02:31.3]} 19. Nd6
{[%clk 0:02:29.9]} 19... Rcd8 {[%clk 0:02:19.4]} 20. Qe2 {[%clk 0:02:25.3]}
20... e5 {[%clk 0:02:14.3]} 21. Ngf5 {[%clk 0:02:18.4]} 21... Bxd6 {[%clk
0:02:06.4]} 22. Rxd6 {[%clk 0:02:17.6]} 22... Qc5 {[%clk 0:02:04.7]} 23. Be3
{[%clk 0:02:16.6]} 23... Qc7 {[%clk 0:01:42.4]} 24. Rfd1 {[%clk 0:02:12.6]}
24... bxc4 {[%clk 0:01:26.9]} 25. bxc4 {[%clk 0:02:11]} 25... Nb8 {[%clk
0:01:03.2]} 26. Bb6 {[%clk 0:02:10.2]} 26... Rxd6 {[%clk 0:00:51.9]} 27. Bxc7
{[%clk 0:02:10]} 27... Rxd1+ {[%clk 0:00:48.7]} 28. Qxd1 {[%clk 0:02:10.9]}
28... Nbd7 {[%clk 0:00:45.9]} 29. Bd6 {[%clk 0:02:08.4]} 29... Re8 {[%clk
0:00:42.2]} 30. c5 {[%clk 0:02:07.7]} 30... g6 {[%clk 0:00:42.3]} 31. Ne7+
{[%clk 0:02:06.6]} 31... Kg7 {[%clk 0:00:41.6]} 32. c6 {[%clk 0:02:06.9]} 32...
Nb6 {[%clk 0:00:40.2]} 33. Bxe5 {[%clk 0:02:05.5]} 33... Rxe7 {[%clk 0:00:39.4]}
34. Bxf6+ {[%clk 0:02:05.3]} 34... Kxf6 {[%clk 0:00:39.3]} 35. Qd4+ {[%clk
0:02:05.9]} 35... Ke6 {[%clk 0:00:32.8]} 36. Qxb6 {[%clk 0:02:06.8]} 36... Re8
{[%clk 0:00:30.3]} 37. c7+ {[%clk 0:02:05.6]} 37... Kd7 {[%clk 0:00:29.9]} 38.
f4 {[%clk 0:02:02.3]} 38... Rc8 {[%clk 0:00:28.9]} 39. Qxa6 {[%clk 0:02:01.7]}
39... Rxc7 {[%clk 0:00:28.4]} 40. Qd3+ {[%clk 0:02:01.5]} 40... Ke7 {[%clk
0:00:28]} 41. a4 {[%clk 0:02:01.3]} 41... Ra7 {[%clk 0:00:26.5]} 42. Qe3+ {[%clk
0:02:00.9]} 1-0